[Event "Titled Tuesday Blitz January 03 Late 2023"]
[White "Quinones Garcia, Santiago"]
[Black "Papp, Petra"]
[WhiteFideId "4408497"]
[BlackFideId "739049"]
[WhiteElo "2248"]
[BlackElo "2343"]
[Result "1-0"]
[Round "05"]
[TimeControl "180+2"]
[Date "2023.01.03"]
[WhiteClock "0:01:27"]
[BlackClock "0:00:04"]

1. d4 {[%clk 0:03:00]}  Nf6 {[%clk 0:02:59]} 2. c4 {[%clk 0:03:00]}  g6 {[%clk 0:03:00]} 3. Nc3 {[%clk 0:03:01]}  d5 {[%clk 0:03:00]} 4. cxd5 {[%clk 0:03:00]}  Nxd5 {[%clk 0:03:01]} 5. e4 {[%clk 0:03:00]}  Nxc3 {[%clk 0:03:01]} 6. bxc3 {[%clk 0:03:01]}  Bg7 {[%clk 0:03:01]} 7. Nf3 {[%clk 0:03:02]}  c5 {[%clk 0:03:00]} 8. Be3 {[%clk 0:03:02]}  O-O {[%clk 0:03:00]} 9. Rc1 {[%clk 0:03:01]}  Nc6 {[%clk 0:02:59]} 10. d5 {[%clk 0:02:58]}  Ne5 {[%clk 0:02:56]} 11. Nxe5 {[%clk 0:02:57]}  Bxe5 {[%clk 0:02:57]} 12. f4 {[%clk 0:02:58]}  Bg7 {[%clk 0:02:55]} 13. Be2 {[%clk 0:02:58]}  b6 {[%clk 0:02:52]} 14. O-O {[%clk 0:02:58]}  Bb7 {[%clk 0:02:44]} 15. c4 {[%clk 0:02:58]}  e5 {[%clk 0:02:28]} 16. f5 {[%clk 0:02:48]}  Qd6 {[%clk 0:02:13]} 17. Qd2 {[%clk 0:02:48]}  Rfd8 {[%clk 0:02:09]} 18. a4 {[%clk 0:02:47]}  Qd7 {[%clk 0:02:03]} 19. Ra1 {[%clk 0:02:44]}  Kh8 {[%clk 0:01:49]} 20. a5 {[%clk 0:02:44]}  Qd6 {[%clk 0:01:07]} 21. a6 {[%clk 0:02:42]}  Bc8 {[%clk 0:01:07]} 22. Bd1 {[%clk 0:02:42]}  gxf5 {[%clk 0:01:02]} 23. exf5 {[%clk 0:02:41]}  e4 {[%clk 0:01:00]} 24. Ra3 {[%clk 0:02:37]}  Be5 {[%clk 0:00:54]} 25. g4 {[%clk 0:01:57]}  Rg8 {[%clk 0:00:46]} 26. Qg2 {[%clk 0:01:55]}  Bd7 {[%clk 0:00:29]} 27. h3 {[%clk 0:01:54]}  Rae8 {[%clk 0:00:26]} 28. Bc2 {[%clk 0:01:53]}  Bd4 {[%clk 0:00:25]} 29. Bxe4 {[%clk 0:01:50]}  Bxe3+ {[%clk 0:00:17]} 30. Rxe3 {[%clk 0:01:49]}  b5 {[%clk 0:00:13]} 31. cxb5 {[%clk 0:01:40]}  Bxb5 {[%clk 0:00:14]} 32. Ra1 {[%clk 0:01:39]}  Bxa6 {[%clk 0:00:11]} 33. Rea3 {[%clk 0:01:39]}  Bc4 {[%clk 0:00:09]} 34. Rxa7 {[%clk 0:01:38]}  Rxe4 {[%clk 0:00:09]} 35. Qxe4 {[%clk 0:01:33]}  Bxd5 {[%clk 0:00:07]} 36. Qe3 {[%clk 0:01:31]}  h5 {[%clk 0:00:04]} 37. R7a6 {[%clk 0:01:27]}  Qc7 {[%clk 0:00:04]} 38. Qh6# {[%clk 0:01:27]} 1-0


[Site "https://www.chess.com"]

[Event "Titled Tuesday Blitz January 03 Late 2023"]
[White "Moreno Perez, Tobias Sebastian"]
[Black "Sabar, Ethmane Daouda"]
[WhiteFideId "186716"]
[BlackFideId "19600097"]
[WhiteElo "2256"]
[BlackElo "2040"]
[Result "1-0"]
[Round "05"]
[TimeControl "180+2"]
[Date "2023.01.03"]
[WhiteClock "0:01:19"]
[BlackClock "0:00:14"]

1. d4 {[%clk 0:03:00]}  d5 {[%clk 0:02:58]} 2. Bf4 {[%clk 0:03:00]}  c6 {[%clk 0:02:49]} 3. e3 {[%clk 0:02:58]}  Bf5 {[%clk 0:02:46]} 4. c4 {[%clk 0:02:53]}  e6 {[%clk 0:02:39]} 5. Nc3 {[%clk 0:02:53]}  Qb6 {[%clk 0:02:29]} 6. Qb3 {[%clk 0:02:51]}  Nd7 {[%clk 0:02:26]} 7. c5 {[%clk 0:02:50]}  Qxb3 {[%clk 0:02:24]} 8. axb3 {[%clk 0:02:51]}  a6 {[%clk 0:02:05]} 9. b4 {[%clk 0:02:49]}  Rc8 {[%clk 0:01:57]} 10. Nf3 {[%clk 0:02:48]}  Be7 {[%clk 0:01:53]} 11. Nd2 {[%clk 0:02:47]}  Ngf6 {[%clk 0:01:48]} 12. Nb3 {[%clk 0:02:45]}  Nh5 {[%clk 0:01:46]} 13. Be5 {[%clk 0:02:36]}  Nxe5 {[%clk 0:01:29]} 14. dxe5 {[%clk 0:02:37]}  g5 {[%clk 0:01:28]} 15. Be2 {[%clk 0:02:26]}  Ng7 {[%clk 0:01:27]} 16. Nd4 {[%clk 0:02:14]}  Bg6 {[%clk 0:01:22]} 17. O-O {[%clk 0:02:09]}  O-O {[%clk 0:01:07]} 18. Bxa6 {[%clk 0:01:57]}  bxa6 {[%clk 0:01:05]} 19. Rxa6 {[%clk 0:01:58]}  Bd3 {[%clk 0:00:46]} 20. Nxc6 {[%clk 0:01:25]}  Rxc6 {[%clk 0:00:43]} 21. Rxc6 {[%clk 0:01:25]}  Bxf1 {[%clk 0:00:43]} 22. Kxf1 {[%clk 0:01:26]}  Rb8 {[%clk 0:00:36]} 23. b5 {[%clk 0:01:24]}  Ne8 {[%clk 0:00:31]} 24. b6 {[%clk 0:01:23]}  Kf8 {[%clk 0:00:27]} 25. Nb5 {[%clk 0:01:22]}  h6 {[%clk 0:00:19]} 26. Nd6 {[%clk 0:01:22]}  Nxd6 {[%clk 0:00:17]} 27. exd6 {[%clk 0:01:23]}  Bf6 {[%clk 0:00:16]} 28. Rc7 {[%clk 0:01:18]}  Bxb2 {[%clk 0:00:16]} 29. b7 {[%clk 0:01:19]}  Ba3 {[%clk 0:00:14]} 30. Rc8+ {[%clk 0:01:19]} 1-0


[Site "https://www.chess.com"]

[Event "Titled Tuesday Blitz January 03 Late 2023"]
[White "Lorenzo De La Riva, Lazaro"]
[Black "Sariego Figueredo, Wilfredo"]
[WhiteFideId "2268809"]
[BlackFideId "3500080"]
[WhiteElo "2404"]
[BlackElo "2318"]
[Result "1-0"]
[Round "05"]
[TimeControl "180+2"]
[Date "2023.01.03"]
[WhiteClock "0:01:55"]
[BlackClock "0:00:45"]

1. e4 {[%clk 0:02:56]}  c5 {[%clk 0:03:00]} 2. Nf3 {[%clk 0:02:55]}  a6 {[%clk 0:03:00]} 3. b3 {[%clk 0:02:54]}  b5 {[%clk 0:02:54]} 4. a4 {[%clk 0:02:50]}  b4 {[%clk 0:02:48]} 5. Bb2 {[%clk 0:02:48]}  Bb7 {[%clk 0:02:48]} 6. Qe2 {[%clk 0:02:48]}  Nf6 {[%clk 0:02:35]} 7. d3 {[%clk 0:02:47]}  e6 {[%clk 0:02:32]} 8. g3 {[%clk 0:02:46]}  Be7 {[%clk 0:02:30]} 9. Bg2 {[%clk 0:02:45]}  O-O {[%clk 0:02:30]} 10. O-O {[%clk 0:02:44]}  d5 {[%clk 0:02:26]} 11. Nbd2 {[%clk 0:02:40]}  dxe4 {[%clk 0:02:14]} 12. dxe4 {[%clk 0:02:38]}  Nc6 {[%clk 0:02:08]} 13. Rfd1 {[%clk 0:02:30]}  Qc7 {[%clk 0:02:06]} 14. Nc4 {[%clk 0:02:20]}  Rfd8 {[%clk 0:01:59]} 15. h3 {[%clk 0:02:09]}  Na5 {[%clk 0:01:23]} 16. Be5 {[%clk 0:02:05]}  Rxd1+ {[%clk 0:00:59]} 17. Rxd1 {[%clk 0:02:03]}  Qc8 {[%clk 0:00:57]} 18. Nxa5 {[%clk 0:02:01]}  Bxe4 {[%clk 0:00:55]} 19. Bxf6 {[%clk 0:02:00]}  Bxf3 {[%clk 0:00:55]} 20. Qxf3 {[%clk 0:01:59]}  Ra7 {[%clk 0:00:51]} 21. Bxe7 {[%clk 0:01:58]}  Rxe7 {[%clk 0:00:52]} 22. Qc6 {[%clk 0:01:57]}  Rc7 {[%clk 0:00:49]} 23. Qxa6 {[%clk 0:01:55]}  Qxa6 {[%clk 0:00:45]} 1-0


[Site "https://www.chess.com"]

[Event "Titled Tuesday Blitz January 03 Late 2023"]
[White "Silvestre, Christian"]
[Black "Hernandez Bonilla, Amelia"]
[WhiteFideId "30956269"]
[BlackFideId "3900193"]
[WhiteElo "1942"]
[BlackElo "1960"]
[Result "0-1"]
[Round "05"]
[TimeControl "180+2"]
[Date "2023.01.03"]
[WhiteClock "0:01:50"]
[BlackClock "0:00:21"]

1. e4 {[%clk 0:03:00]}  c5 {[%clk 0:02:58]} 2. f4 {[%clk 0:03:00]}  Nc6 {[%clk 0:02:56]} 3. Nc3 {[%clk 0:03:00]}  g6 {[%clk 0:02:56]} 4. Bc4 {[%clk 0:02:59]}  Bg7 {[%clk 0:02:56]} 5. Nf3 {[%clk 0:02:59]}  e6 {[%clk 0:02:56]} 6. O-O {[%clk 0:02:58]}  Nge7 {[%clk 0:02:56]} 7. Kh1 {[%clk 0:02:57]}  O-O {[%clk 0:02:51]} 8. d3 {[%clk 0:02:57]}  Na5 {[%clk 0:02:48]} 9. Bb3 {[%clk 0:02:51]}  Nxb3 {[%clk 0:02:47]} 10. axb3 {[%clk 0:02:52]}  d6 {[%clk 0:02:41]} 11. Qe1 {[%clk 0:02:48]}  f5 {[%clk 0:02:40]} 12. Qh4 {[%clk 0:02:42]}  Bd7 {[%clk 0:02:30]} 13. Bd2 {[%clk 0:02:36]}  Nc6 {[%clk 0:02:23]} 14. Qh3 {[%clk 0:02:36]}  fxe4 {[%clk 0:02:08]} 15. dxe4 {[%clk 0:02:35]}  e5 {[%clk 0:02:01]} 16. Qg3 {[%clk 0:02:33]}  exf4 {[%clk 0:01:58]} 17. Bxf4 {[%clk 0:02:33]}  Rxf4 {[%clk 0:01:43]} 18. Qxf4 {[%clk 0:02:31]}  Ne5 {[%clk 0:01:43]} 19. Nd5 {[%clk 0:02:31]}  Bc6 {[%clk 0:01:37]} 20. Nxe5 {[%clk 0:02:30]}  Bxe5 {[%clk 0:01:36]} 21. Qf7+ {[%clk 0:02:30]}  Kh8 {[%clk 0:01:36]} 22. c3 {[%clk 0:02:29]}  Qh4 {[%clk 0:01:32]} 23. h3 {[%clk 0:02:23]}  Qg3 {[%clk 0:01:23]} 24. Rf4 {[%clk 0:02:13]}  Bxd5 {[%clk 0:01:17]} 25. exd5 {[%clk 0:02:06]}  Qxf4 {[%clk 0:01:11]} 26. Qxf4 {[%clk 0:02:05]}  Bxf4 {[%clk 0:01:12]} 27. Rf1 {[%clk 0:02:05]}  g5 {[%clk 0:01:01]} 28. Rf3 {[%clk 0:02:00]}  Kg7 {[%clk 0:00:59]} 29. g3 {[%clk 0:02:01]}  Be5 {[%clk 0:00:58]} 30. Re3 {[%clk 0:01:57]}  a5 {[%clk 0:00:51]} 31. Kg2 {[%clk 0:01:57]}  a4 {[%clk 0:00:51]} 32. bxa4 {[%clk 0:01:58]}  Rxa4 {[%clk 0:00:51]} 33. Kf3 {[%clk 0:01:57]}  Ra2 {[%clk 0:00:50]} 34. Re2 {[%clk 0:01:57]}  Kf6 {[%clk 0:00:46]} 35. h4 {[%clk 0:01:57]}  gxh4 {[%clk 0:00:42]} 36. gxh4 {[%clk 0:01:58]}  Kf5 {[%clk 0:00:42]} 37. Rg2 {[%clk 0:01:57]}  Bf6 {[%clk 0:00:41]} 38. Re2 {[%clk 0:01:57]}  Bxh4 {[%clk 0:00:37]} 39. Rh2 {[%clk 0:01:56]}  Bf6 {[%clk 0:00:36]} 40. Rh5+ {[%clk 0:01:48]}  Kg6 {[%clk 0:00:33]} 41. Rh2 {[%clk 0:01:49]}  h5 {[%clk 0:00:31]} 42. Rg2+ {[%clk 0:01:49]}  Kf5 {[%clk 0:00:30]} 43. Rh2 {[%clk 0:01:49]}  h4 {[%clk 0:00:29]} 44. Rf2 {[%clk 0:01:47]}  b5 {[%clk 0:00:23]} 45. Ke3+ {[%clk 0:01:46]}  Ke5 {[%clk 0:00:21]} 46. Kd3 {[%clk 0:01:45]}  c4+ {[%clk 0:00:20]} 47. Kc2 {[%clk 0:01:45]}  Bg5 {[%clk 0:00:17]} 48. Rg2 {[%clk 0:01:44]}  Kf5 {[%clk 0:00:17]} 49. Rf2+ {[%clk 0:01:44]}  Bf4 {[%clk 0:00:17]} 50. Kd1 {[%clk 0:01:43]}  Ra1+ {[%clk 0:00:17]} 51. Ke2 {[%clk 0:01:43]}  h3 {[%clk 0:00:17]} 52. Kf3 {[%clk 0:01:42]}  h2 {[%clk 0:00:18]} 53. Rxh2 {[%clk 0:01:41]}  Bxh2 {[%clk 0:00:18]} 54. Ke3 {[%clk 0:01:42]}  Rb1 {[%clk 0:00:18]} 55. Kd4 {[%clk 0:01:43]}  Rxb2 {[%clk 0:00:18]} 56. Ke3 {[%clk 0:01:43]}  Be5 {[%clk 0:00:18]} 57. Kf3 {[%clk 0:01:44]}  Bxc3 {[%clk 0:00:19]} 58. Ke3 {[%clk 0:01:45]}  b4 {[%clk 0:00:19]} 59. Kf3 {[%clk 0:01:45]}  Be5 {[%clk 0:00:20]} 60. Ke3 {[%clk 0:01:46]}  b3 {[%clk 0:00:20]} 61. Kf3 {[%clk 0:01:47]}  Rc2 {[%clk 0:00:20]} 62. Ke3 {[%clk 0:01:48]}  b2 {[%clk 0:00:21]} 63. Kf3 {[%clk 0:01:49]}  b1=Q {[%clk 0:00:21]} 64. Ke3 {[%clk 0:01:50]}  Qe1+ {[%clk 0:00:21]} 65. Kf3 {[%clk 0:01:50]}  Rf2# {[%clk 0:00:21]} 0-1


[Site "https://www.chess.com"]

[Event "Titled Tuesday Blitz January 03 Late 2023"]
[White "Nissinen, Niilo Man"]
[Black "Andrews, Todd"]
[WhiteFideId "30950767"]
[BlackFideId "2012456"]
[WhiteElo "1958"]
[BlackElo "2220"]
[Result "0-1"]
[Round "05"]
[TimeControl "180+2"]
[Date "2023.01.03"]
[WhiteClock "0:00:10"]
[BlackClock "0:01:17"]

1. e4 {[%clk 0:03:00]}  e6 {[%clk 0:02:40]} 2. d4 {[%clk 0:02:58]}  d5 {[%clk 0:02:40]} 3. Nc3 {[%clk 0:02:57]}  Bb4 {[%clk 0:02:39]} 4. e5 {[%clk 0:02:55]}  c5 {[%clk 0:02:40]} 5. a3 {[%clk 0:02:54]}  Bxc3+ {[%clk 0:02:40]} 6. bxc3 {[%clk 0:02:55]}  Ne7 {[%clk 0:02:40]} 7. Nf3 {[%clk 0:02:55]}  Bd7 {[%clk 0:02:40]} 8. c4 {[%clk 0:02:48]}  cxd4 {[%clk 0:02:36]} 9. Qxd4 {[%clk 0:02:43]}  Bc6 {[%clk 0:02:30]} 10. cxd5 {[%clk 0:02:31]}  Qxd5 {[%clk 0:02:29]} 11. Qxd5 {[%clk 0:02:23]}  Nxd5 {[%clk 0:02:26]} 12. Bb2 {[%clk 0:02:16]}  Nd7 {[%clk 0:02:21]} 13. O-O-O {[%clk 0:02:12]}  O-O {[%clk 0:02:18]} 14. Bd3 {[%clk 0:01:32]}  Rfc8 {[%clk 0:02:15]} 15. Be4 {[%clk 0:01:29]}  N7b6 {[%clk 0:02:11]} 16. Nd4 {[%clk 0:01:12]}  Ba4 {[%clk 0:02:09]} 17. Kb1 {[%clk 0:01:05]}  Nc3+ {[%clk 0:01:48]} 18. Bxc3 {[%clk 0:01:04]}  Rxc3 {[%clk 0:01:49]} 19. Kb2 {[%clk 0:00:35]}  Rc5 {[%clk 0:01:34]} 20. f4 {[%clk 0:00:27]}  Nc4+ {[%clk 0:01:26]} 21. Kc3 {[%clk 0:00:27]}  Ne3+ {[%clk 0:01:20]} 22. Kd3 {[%clk 0:00:11]}  Nxd1 {[%clk 0:01:20]} 23. Rxd1 {[%clk 0:00:12]}  Rd8 {[%clk 0:01:18]} 24. Rb1 {[%clk 0:00:10]}  Bxc2+ {[%clk 0:01:17]} 0-1


[Site "https://www.chess.com"]

[Event "Titled Tuesday Blitz January 03 Late 2023"]
[White "Dudzinski, Pawel"]
[Black "Tamarozi, Isabelle"]
[WhiteFideId "1117890"]
[BlackFideId "2132400"]
[WhiteElo "2186"]
[BlackElo "1982"]
[Result "1-0"]
[Round "05"]
[TimeControl "180+2"]
[Date "2023.01.03"]
[WhiteClock "0:00:11"]
[BlackClock "0:00:01"]

1. e4 {[%clk 0:00:24]}  c5 {[%clk 0:02:56]} 2. Nc3 {[%clk 0:00:24]}  g6 {[%clk 0:02:56]} 3. g3 {[%clk 0:00:25]}  Bg7 {[%clk 0:02:56]} 4. Bg2 {[%clk 0:00:26]}  Nc6 {[%clk 0:02:55]} 5. d3 {[%clk 0:00:27]}  d6 {[%clk 0:02:55]} 6. Be3 {[%clk 0:00:27]}  e6 {[%clk 0:02:53]} 7. Qd2 {[%clk 0:00:27]}  Nge7 {[%clk 0:02:51]} 8. Bh6 {[%clk 0:00:28]}  O-O {[%clk 0:02:48]} 9. h4 {[%clk 0:00:29]}  Nd4 {[%clk 0:02:46]} 10. O-O-O {[%clk 0:00:27]}  b5 {[%clk 0:02:01]} 11. h5 {[%clk 0:00:27]}  Qa5 {[%clk 0:01:47]} 12. Kb1 {[%clk 0:00:25]}  b4 {[%clk 0:01:43]} 13. Nce2 {[%clk 0:00:25]}  Nec6 {[%clk 0:00:35]} 14. Bxg7 {[%clk 0:00:24]}  Kxg7 {[%clk 0:00:34]} 15. hxg6 {[%clk 0:00:24]}  fxg6 {[%clk 0:00:27]} 16. Qh6+ {[%clk 0:00:24]}  Kf7 {[%clk 0:00:27]} 17. Qxh7+ {[%clk 0:00:25]}  Ke8 {[%clk 0:00:26]} 18. Qxg6+ {[%clk 0:00:25]}  Kd8 {[%clk 0:00:26]} 19. Nxd4 {[%clk 0:00:22]}  Nxd4 {[%clk 0:00:23]} 20. Rh7 {[%clk 0:00:21]}  Bd7 {[%clk 0:00:12]} 21. Qg7 {[%clk 0:00:19]}  Be8 {[%clk 0:00:05]} 22. Qe7+ {[%clk 0:00:17]}  Kc8 {[%clk 0:00:04]} 23. Qxf8 {[%clk 0:00:18]}  Qd8 {[%clk 0:00:03]} 24. Rh8 {[%clk 0:00:17]}  Kb7 {[%clk 0:00:02]} 25. Qxe8 {[%clk 0:00:12]}  Qxe8 {[%clk 0:00:02]} 26. Rxe8 {[%clk 0:00:13]}  Rxe8 {[%clk 0:00:03]} 27. c3 {[%clk 0:00:12]}  bxc3 {[%clk 0:00:02]} 28. bxc3 {[%clk 0:00:13]}  Nb5 {[%clk 0:00:03]} 29. Kc2 {[%clk 0:00:13]}  Kc7 {[%clk 0:00:01]} 30. a4 {[%clk 0:00:11]} 1-0


[Site "https://www.chess.com"]

[Event "Titled Tuesday Blitz January 03 Late 2023"]
[White "Desideri, Ricardo Maruchi"]
[Black "Gomes, Luiz Alexandre de Souza"]
[WhiteFideId "2110440"]
[BlackFideId "2102790"]
[WhiteElo "1959"]
[BlackElo "2254"]
[Result "0-1"]
[Round "05"]
[TimeControl "180+2"]
[Date "2023.01.03"]
[WhiteClock "0:00:12"]
[BlackClock "0:02:03"]

1. e4 {[%clk 0:02:55]}  c5 {[%clk 0:02:59]} 2. Nf3 {[%clk 0:02:54]}  d6 {[%clk 0:03:00]} 3. d4 {[%clk 0:02:54]}  cxd4 {[%clk 0:03:00]} 4. Nxd4 {[%clk 0:02:54]}  Nf6 {[%clk 0:03:01]} 5. Nc3 {[%clk 0:02:52]}  a6 {[%clk 0:03:01]} 6. Rg1 {[%clk 0:02:50]}  g6 {[%clk 0:03:01]} 7. g4 {[%clk 0:02:44]}  h6 {[%clk 0:03:01]} 8. h4 {[%clk 0:02:42]}  Bg7 {[%clk 0:03:01]} 9. g5 {[%clk 0:02:39]}  hxg5 {[%clk 0:03:01]} 10. hxg5 {[%clk 0:02:39]}  Nh5 {[%clk 0:03:00]} 11. Be3 {[%clk 0:02:37]}  b5 {[%clk 0:03:00]} 12. a3 {[%clk 0:02:35]}  Bb7 {[%clk 0:03:01]} 13. Qd2 {[%clk 0:02:26]}  Nd7 {[%clk 0:03:01]} 14. f4 {[%clk 0:02:17]}  Rc8 {[%clk 0:02:58]} 15. O-O-O {[%clk 0:02:09]}  Nb6 {[%clk 0:02:56]} 16. Kb1 {[%clk 0:02:01]}  Qc7 {[%clk 0:02:54]} 17. f5 {[%clk 0:01:44]}  Be5 {[%clk 0:02:36]} 18. fxg6 {[%clk 0:01:12]}  fxg6 {[%clk 0:02:30]} 19. Ne6 {[%clk 0:01:04]}  Qd7 {[%clk 0:02:24]} 20. Bh3 {[%clk 0:00:43]}  Qc6 {[%clk 0:02:24]} 21. Bxb6 {[%clk 0:00:37]}  Qxb6 {[%clk 0:02:24]} 22. Nd5 {[%clk 0:00:32]}  Bxd5 {[%clk 0:02:23]} 23. Qxd5 {[%clk 0:00:27]}  Qc6 {[%clk 0:02:16]} 24. Qb3 {[%clk 0:00:15]}  Qc4 {[%clk 0:02:06]} 25. Qf3 {[%clk 0:00:12]}  Qxc2+ {[%clk 0:02:03]} 0-1


[Site "https://www.chess.com"]

[Event "Titled Tuesday Blitz January 03 Late 2023"]
[White "Lock, Gavin R"]
[Black "Mitrovic, Darko R"]
[WhiteFideId "408646"]
[BlackFideId "927023"]
[WhiteElo "2083"]
[BlackElo "2220"]
[Result "0-1"]
[Round "05"]
[TimeControl "180+2"]
[Date "2023.01.03"]
[WhiteClock "0:00:47"]
[BlackClock "0:00:05"]

1. d4 {[%clk 0:03:00]}  Nf6 {[%clk 0:00:54]} 2. Bf4 {[%clk 0:02:58]}  d5 {[%clk 0:00:53]} 3. e3 {[%clk 0:02:58]}  e6 {[%clk 0:00:54]} 4. Nf3 {[%clk 0:02:59]}  Bd6 {[%clk 0:00:54]} 5. Nbd2 {[%clk 0:02:59]}  Bxf4 {[%clk 0:00:54]} 6. exf4 {[%clk 0:03:00]}  O-O {[%clk 0:00:55]} 7. c3 {[%clk 0:03:00]}  b6 {[%clk 0:00:55]} 8. h4 {[%clk 0:02:57]}  a5 {[%clk 0:00:55]} 9. a4 {[%clk 0:02:53]}  c5 {[%clk 0:00:52]} 10. h5 {[%clk 0:02:50]}  Qd6 {[%clk 0:00:43]} 11. g3 {[%clk 0:02:47]}  h6 {[%clk 0:00:43]} 12. Bb5 {[%clk 0:02:35]}  Ba6 {[%clk 0:00:42]} 13. Bxa6 {[%clk 0:02:16]}  Nxa6 {[%clk 0:00:40]} 14. Kf1 {[%clk 0:02:16]}  Nc7 {[%clk 0:00:37]} 15. Kg2 {[%clk 0:02:14]}  b5 {[%clk 0:00:36]} 16. axb5 {[%clk 0:02:13]}  Nxb5 {[%clk 0:00:35]} 17. dxc5 {[%clk 0:01:49]}  Qxc5 {[%clk 0:00:33]} 18. Nb3 {[%clk 0:01:49]}  Qb6 {[%clk 0:00:31]} 19. Ra2 {[%clk 0:01:28]}  a4 {[%clk 0:00:27]} 20. Nbd4 {[%clk 0:01:27]}  Nxd4 {[%clk 0:00:25]} 21. Qxd4 {[%clk 0:01:24]}  Qb3 {[%clk 0:00:22]} 22. Rha1 {[%clk 0:01:21]}  Rfc8 {[%clk 0:00:15]} 23. Ne5 {[%clk 0:01:15]}  a3 {[%clk 0:00:11]} 24. Rxa3 {[%clk 0:01:09]}  Rxa3 {[%clk 0:00:10]} 25. bxa3 {[%clk 0:01:08]}  Rxc3 {[%clk 0:00:10]} 26. a4 {[%clk 0:01:06]}  Qb2 {[%clk 0:00:07]} 27. Re1 {[%clk 0:00:47]}  Rxg3+ {[%clk 0:00:05]} 0-1


[Site "https://www.chess.com"]

[Event "Titled Tuesday Blitz January 03 Late 2023"]
[White "Sloan, Julia Elizabeth"]
[Black "Ardila, Oscar Humberto"]
[WhiteFideId "2018950"]
[BlackFideId "4404742"]
[WhiteElo "2087"]
[BlackElo "1982"]
[Result "1-0"]
[Round "05"]
[TimeControl "180+2"]
[Date "2023.01.03"]
[WhiteClock "0:01:13"]
[BlackClock "0:00:47"]

1. d4 {[%clk 0:02:59]}  Nf6 {[%clk 0:02:52]} 2. c4 {[%clk 0:02:59]}  g6 {[%clk 0:02:52]} 3. f3 {[%clk 0:02:57]}  Bg7 {[%clk 0:02:53]} 4. e4 {[%clk 0:02:57]}  d6 {[%clk 0:02:52]} 5. Nc3 {[%clk 0:02:58]}  O-O {[%clk 0:02:51]} 6. Bg5 {[%clk 0:02:58]}  e5 {[%clk 0:02:51]} 7. dxe5 {[%clk 0:02:57]}  dxe5 {[%clk 0:02:50]} 8. Qxd8 {[%clk 0:02:57]}  Rxd8 {[%clk 0:02:50]} 9. Bxf6 {[%clk 0:02:57]}  Bxf6 {[%clk 0:02:46]} 10. Nd5 {[%clk 0:02:58]}  Rxd5 {[%clk 0:02:34]} 11. cxd5 {[%clk 0:02:57]}  Be7 {[%clk 0:02:33]} 12. Bc4 {[%clk 0:02:53]}  Bd6 {[%clk 0:02:33]} 13. Ne2 {[%clk 0:02:52]}  Nd7 {[%clk 0:02:33]} 14. O-O {[%clk 0:02:51]}  f5 {[%clk 0:02:30]} 15. a4 {[%clk 0:02:45]}  Nf6 {[%clk 0:02:26]} 16. Nc3 {[%clk 0:02:44]}  a6 {[%clk 0:02:24]} 17. Rfb1 {[%clk 0:02:39]}  Bd7 {[%clk 0:02:18]} 18. h3 {[%clk 0:02:38]}  Kg7 {[%clk 0:02:08]} 19. b4 {[%clk 0:02:37]}  Rf8 {[%clk 0:02:03]} 20. a5 {[%clk 0:02:35]}  Nh5 {[%clk 0:01:52]} 21. b5 {[%clk 0:02:33]}  Bc5+ {[%clk 0:01:50]} 22. Kh2 {[%clk 0:02:32]}  Bd4 {[%clk 0:01:50]} 23. Ra3 {[%clk 0:02:27]}  axb5 {[%clk 0:01:44]} 24. Bxb5 {[%clk 0:02:25]}  Bc8 {[%clk 0:01:44]} 25. Ne2 {[%clk 0:02:19]}  Bc5 {[%clk 0:01:42]} 26. Rc3 {[%clk 0:02:18]}  Bd6 {[%clk 0:01:42]} 27. g4 {[%clk 0:02:14]}  fxg4 {[%clk 0:01:39]} 28. fxg4 {[%clk 0:02:07]}  Rf2+ {[%clk 0:01:35]} 29. Kg1 {[%clk 0:02:05]}  Rxe2 {[%clk 0:01:35]} 30. Bxe2 {[%clk 0:02:04]}  Nf4 {[%clk 0:01:32]} 31. Bf1 {[%clk 0:02:04]}  Kf6 {[%clk 0:01:32]} 32. Rbc1 {[%clk 0:01:59]}  Ke7 {[%clk 0:01:12]} 33. Rxc7+ {[%clk 0:01:57]}  Bxc7 {[%clk 0:01:12]} 34. Rxc7+ {[%clk 0:01:57]}  Bd7 {[%clk 0:01:12]} 35. Rxb7 {[%clk 0:01:56]}  Kd6 {[%clk 0:01:12]} 36. Rb6+ {[%clk 0:01:46]}  Kc7 {[%clk 0:01:12]} 37. Rf6 {[%clk 0:01:46]}  Ba4 {[%clk 0:01:07]} 38. a6 {[%clk 0:01:32]}  Bc2 {[%clk 0:01:02]} 39. a7 {[%clk 0:01:30]}  Kb7 {[%clk 0:01:02]} 40. Rf7+ {[%clk 0:01:29]}  Ka8 {[%clk 0:01:02]} 41. d6 {[%clk 0:01:28]}  Bxe4 {[%clk 0:00:59]} 42. d7 {[%clk 0:01:28]}  Ne6 {[%clk 0:01:00]} 43. d8=Q+ {[%clk 0:01:25]}  Nxd8 {[%clk 0:00:59]} 44. Rf8 {[%clk 0:01:25]}  Kxa7 {[%clk 0:00:56]} 45. Rxd8 {[%clk 0:01:25]}  Bf3 {[%clk 0:00:56]} 46. Rd7+ {[%clk 0:01:23]}  Kb6 {[%clk 0:00:56]} 47. Rxh7 {[%clk 0:01:23]}  Kc5 {[%clk 0:00:56]} 48. Rg7 {[%clk 0:01:22]}  Be4 {[%clk 0:00:56]} 49. Kf2 {[%clk 0:01:19]}  Kd4 {[%clk 0:00:56]} 50. Bg2 {[%clk 0:01:18]}  Bb1 {[%clk 0:00:56]} 51. h4 {[%clk 0:01:18]}  e4 {[%clk 0:00:55]} 52. h5 {[%clk 0:01:18]}  e3+ {[%clk 0:00:55]} 53. Ke1 {[%clk 0:01:18]}  gxh5 {[%clk 0:00:55]} 54. gxh5 {[%clk 0:01:17]}  Ke5 {[%clk 0:00:54]} 55. h6 {[%clk 0:01:17]}  Kf6 {[%clk 0:00:54]} 56. Ke2 {[%clk 0:01:15]}  Bf5 {[%clk 0:00:48]} 57. Kxe3 {[%clk 0:01:15]}  Bb1 {[%clk 0:00:48]} 58. Kf4 {[%clk 0:01:15]}  Bc2 {[%clk 0:00:47]} 59. Be4 {[%clk 0:01:14]}  Bb3 {[%clk 0:00:47]} 60. Rg1 {[%clk 0:01:13]} 1-0


[Site "https://www.chess.com"]